[Event "Satka Autumn 2018"]
[Site "Satka"]
[Date "2018.09.13"]
[Round "3"]
[White "Filippova, Darya"]
[Black "Mukhina, Jana"]
[Result "1-0"]
[ECO "A46"]
[WhiteElo "2061"]
[BlackElo "2072"]
[Annotator "NA"]
[PlyCount "97"]
[EventDate "2018.09.11"]
[EventType "swiss"]
[EventCountry "RUS"]
[SourceTitle "playchess.com"]
[Source "ChessBase"]
[SourceQuality "1"]
[TimeControl "40/5400+30:1800+30"]

1. Nf3 {[%emt 0:00:15]} Nf6 {[%emt 0:01:21]} 2. d4 {[%emt 0:00:26]} e6 {[%emt 0:00:47]} 3. Bg5 {[%emt 0:12:20]} d5 {[%emt 0:02:18]} 4. Nbd2 {[%emt 0:05:36]} c5 {[%emt 0:00:13]} 5. e3 {[%emt 0:01:54]} Nc6 {[%emt 0:04:16]} 6. c3 {[%emt 0:00:48]} h6 {[%emt 0:08:43]} 7. Bh4 {[%emt 0:00:30]} Be7 {[%emt 0:09:11]} 8. Be2 {[%emt 0:01:53]} b6 {[%emt 0:05:39]} 9. O-O {[%emt 0:05:59]} O-O {[%emt 0:03:19]} 10. Ne5 $146 {[%emt 0:05:05] D02: 1 d4 d5 2 Nf3 sidelines, including 2...Nf6 3 g3 and 2...Nf6 3 Bf4} ({Predecessor:} 10. Re1 Bb7 11. Qa4 a6 12. Bf1 b5 13. Qd1 Rc8 14. Nb3 Ne4 15. Bxe7 Qxe7 16. dxc5 {½-½ (16) Bussard,C (2125)-Sundorf,J (2102) Germany 2015}) 10... Nxe5 {[%emt 0:10:13]} 11. dxe5 {[%emt 0:00:12]} Ne4 {[%emt 0:00:44]} 12. Bxe7 {[%emt 0:01:53]} Qxe7 {[%emt 0:00:10]} 13. f4 {[%emt 0:01:49]} (13. Nxe4 $14 dxe4 14. Qa4) 13... Nxd2 {[%emt 0:06:06]} 14. Qxd2 {[%emt 0:00:11]} Bb7 {[%emt 0:00:21]} 15. Bd3 {[%emt 0:08:58]} f6 {[%emt 0:02:42]} 16. exf6 {[%emt 0:01:42]} Qxf6 {[%emt 0:11:06]} 17. Bc2 {[%emt 0:04:09]} Rad8 {[%emt 0:04:51]} 18. Qd3 {[%emt 0:02:16]} Qf5 {[%emt 0:07:16]} 19. Qxf5 {[%emt 0:08:49]} exf5 {[%emt 0:00:06]} 20. Rad1 {[%emt 0:01:47]} g6 {[%emt 0:00:53]} 21. Bb3 {[%emt 0:02:41]} Kg7 {[%emt 0:00:19]} 22. Rd2 {[%emt 0:01:44]} Rfe8 {[%emt 0:04:04]} 23. Kf2 {[%emt 0:00:32]} Re7 {[%emt 0:06:31]} 24. Rfd1 {[%emt 0:01:05]} Rde8 {[%emt 0:01:23]} 25. Ba4 {[%emt 0:03:13]} Rf8 {[%emt 0:00:27]} 26. Bb3 {[%emt 0:01:44]} c4 {[%emt 0:02:12]} 27. Ba4 {[%emt 0:02:03]} a6 {[%emt 0:01:08]} 28. Re1 {[%emt 0:00:22]} Kf6 {[%emt 0:02:05]} 29. Bd1 {[%emt 0:00:27]} Rfe8 {[%emt 0:01:41]} 30. Bf3 {[%emt 0:00:37]} Rd8 {[%emt 0:00:19]} 31. Red1 {[%emt 0:03:52]} Rde8 {[%emt 0:00:30]} 32. Re2 {[%emt 0:00:14]} Ke6 {[%emt 0:00:56]} 33. Red2 {[%emt 0:02:04]} Kf6 {[%emt 0:00:05]} 34. Re2 {[%emt 0:00:23]} Ke6 {[%emt 0:00:06]} 35. g4 {[%emt 0:01:51]} Rd7 {[%emt 0:03:42]} (35... fxg4 $11 {bleibt in der Remisbreite.} 36. Bxg4+ Kd6) 36. Red2 {[%emt 0:02:40]} Red8 {[%emt 0:01:10]} 37. h4 {[%emt 0:00:58]} Bc6 {[%emt 0:00:54]} 38. Rg1 {[%emt 0:01:41]} Rd6 {[%emt 0:00:27]} 39. h5 {[%emt 0:01:54]} gxh5 {[%emt 0:00:17]} 40. gxf5+ {[%emt 0:00:00]} Kxf5 {[%emt 0:00:00]} 41. Bxh5 {[%emt 0:02:44]} Be8 {[%emt 0:06:41]} 42. Rh1 {[%emt 0:10:35]} Bc6 {[%emt 0:09:15]} 43. Bd1 {[%emt 0:04:26]} Rf6 {[%emt 0:02:23]} 44. Rh5+ {[%emt 0:01:43]} Kg6 $16 {[%emt 0:03:00]} 45. Re5 {[%emt 0:00:56]} Rfd6 {[%emt 0:03:52]} 46. Kf1 {[%emt 0:03:18]} Rg8 {[%emt 0:01:36]} 47. Re7 {[%emt 0:02:22]} Bd7 {[%emt 0:06:16]} 48. Rg2+ {[%emt 0:00:54]} Kf6 {[%emt 0:00:09]} 49. Rxd7 {[%emt 0:00:08]} 1-0

[Event "Satka Autumn 2018"]
[Site "Satka"]
[Date "2018.09.13"]
[Round "3"]
[White "Sosnina, Ekaterina"]
[Black "Skobochkina, Maria"]
[Result "1-0"]
[ECO "C63"]
[WhiteElo "1955"]
[BlackElo "1294"]
[Annotator "NA"]
[PlyCount "80"]
[EventDate "2018.09.11"]
[EventType "swiss"]
[EventCountry "RUS"]
[SourceTitle "playchess.com"]
[Source "ChessBase"]
[SourceQuality "1"]
[TimeControl "40/5400+30:1800+30"]

{[%evp 8,66,62,60,93,73,112,70,101,95,109,55,240,214,222,209,223,163,173,105,240,133,148,0,0,0,0,0,95,82,90,59,121,121,123,126,121,109,126,126,141,152,170,142,144,148,147,143,149,149,172,154,166,183,193,152,154,133,218,226,239]} 1. e4 {[%emt 0:00:00]} e5 {[%emt 0:00:00]} 2. Nf3 {[%emt 0:00:00]} Nc6 {[%emt 0:00:00]} 3. Bb5 {[%emt 0:00:00]} f5 {[%emt 0:00:51]} 4. Nc3 {[%emt 0:00:00]} Nf6 {[%emt 0:00:09]} 5. exf5 {[%emt 0:00:06]} Be7 {[%emt 0:01:47] C63: Ruy Lopez: Schliemann/Jaenisch Defence} (5... e4 6. Ng5 d5 7. Ne6 Bxe6 8. fxe6 Qd6 9. d3 Qxe6 10. dxe4 dxe4 11. Bg5 Be7 12. Bxf6 Bxf6 13. Qh5+ g6 {½-½ (59) Adams,M (2699)-Sokolov,I (2655) London 2009}) 6. O-O {[%emt 0:04:23] LiveBook: 3 Games} O-O {[%emt 0:02:31]} 7. d4 $146 {[%emt 0:35:50]} ({Predecessor:} 7. Re1 d6 8. Bxc6 bxc6 9. d4 e4 10. Nxe4 Nxe4 11. Rxe4 Bxf5 12. Re3 Qd7 13. Bd2 {½-½ (34) Stefansson,H (2574)-Asauskas,H (2320) Kemer 2007}) 7... e4 {[%emt 0:04:31]} 8. Ne5 {[%emt 0:00:07]} a6 {[%emt 0:01:04]} 9. Ba4 {[%emt 0:00:05]} (9. Bxc6 $16 dxc6 10. g4) 9... Nb4 $2 {[%emt 0:12:37]} (9... Na5 $1 $14) 10. Re1 {[%emt 0:02:50]} d6 {[%emt 0:01:24]} 11. Bb3+ {[%emt 0:00:11]} d5 {[%emt 0:01:30]} 12. a3 {[%emt 0:02:26]} Nc6 {[%emt 0:00:43]} 13. Nxe4 {[%emt 0:00:29]} (13. g4 $18 Kh8 14. Bg5) 13... Bxf5 {[%emt 0:02:30]} (13... Nxe4 $16 {was worth a try.} 14. Rxe4 Bxf5) 14. Nxf6+ {[%emt 0:01:01]} (14. Ng3 $18 Bc8 15. h3) 14... Bxf6 {[%emt 0:00:18]} 15. Qf3 {[%emt 0:03:17]} ({White should play} 15. c3 $16) 15... Nxd4 {[%emt 0:04:48]} 16. Qxd5+ {[%emt 0:00:14]} Qxd5 {[%emt 0:00:21]} 17. Bxd5+ {[%emt 0:00:06]} Be6 {[%emt 0:01:13]} (17... Kh8 $11 {remains equal.} 18. Bb3 (18. Bxb7 Rab8 $17) 18... Bxc2 19. Nf7+ Kg8 20. Nh6+ Kh8 21. Nf7+ Kg8 22. Nh6+ Kh8 23. Nf7+) 18. Bxe6+ {[%emt 0:04:59]} ({And not} 18. Bxb7 Nxc2 19. Bxa8 Nxe1 $17) 18... Nxe6 {[%emt 0:00:09]} 19. Nd7 {[%emt 0:00:08]} Rfe8 {[%emt 0:00:16]} ({Black should play} 19... Nd4 $14) 20. Nxf6+ {[%emt 0:00:06]} gxf6 {[%emt 0:00:05]} 21. Be3 {[%emt 0:00:13]} Rad8 {[%emt 0:00:30]} 22. Rad1 {[%emt 0:00:11]} Ng7 {[%emt 0:01:10]} 23. Kf1 {[%emt 0:03:19]} Nf5 {[%emt 0:00:21]} 24. Bf4 {[%emt 0:00:13]} c6 {[%emt 0:01:56]} 25. Bc7 {[%emt 0:10:36]} Rxe1+ {[%emt 0:03:07]} 26. Kxe1 {[%emt 0:01:13]} Rxd1+ {[%emt 0:00:15]} 27. Kxd1 {[%emt 0:00:07]} Nh4 {[%emt 0:00:19]} 28. g3 {[%emt 0:00:27]} Nf3 {[%emt 0:00:28]} 29. Ke2 {[%emt 0:00:14]} Nd4+ {[%emt 0:00:29]} 30. Kd3 {[%emt 0:00:23]} Ne6 {[%emt 0:00:23]} 31. Bd6 {[%emt 0:00:20]} Kf7 {[%emt 0:00:49]} 32. f4 {[%emt 0:00:49]} Kg6 {[%emt 0:00:57]} (32... f5 $16 {was necessary.} 33. c4 c5) 33. Ke4 {[%emt 0:00:45]} Ng7 $18 {[%emt 0:00:55]} 34. Bf8 {[%emt 0:01:47]} Ne8 {[%emt 0:00:26]} 35. g4 {[%emt 0:01:23]} Nc7 {[%emt 0:01:06]} 36. c4 {[%emt 0:00:10]} Kf7 {[%emt 0:02:45]} 37. Bd6 {[%emt 0:00:20]} Ne6 {[%emt 0:03:13]} 38. h4 {[%emt 0:01:10]} h6 {[%emt 0:01:10]} 39. f5 {[%emt 0:04:10]} Ng7 {[%emt 0:01:38]} 40. Bf4 {[%emt 0:00:00]} Ke8 1-0

[Event "Satka Autumn 2018"]
[Site "Satka"]
[Date "2018.09.13"]
[Round "3"]
[White "Mikheeva, Galina"]
[Black "Barsukova, Kira"]
[Result "1-0"]
[ECO "B23"]
[WhiteElo "1767"]
[BlackElo "1119"]
[Annotator "NA"]
[PlyCount "85"]
[EventDate "2018.09.11"]
[EventType "swiss"]
[EventCountry "RUS"]
[SourceTitle "playchess.com"]
[Source "ChessBase"]
[SourceQuality "1"]
[TimeControl "40/5400+30:1800+30"]

1. e4 {[%emt 0:00:00]} c5 {[%emt 0:00:00]} 2. Nc3 {[%emt 0:00:00]} d6 {[%emt 0:00:00]} 3. g3 {[%emt 0:00:00]} Nf6 {[%emt 0:01:24]} 4. Bg2 {[%emt 0:00:00]} Nc6 {[%emt 0:01:09]} 5. d3 {[%emt 0:00:00]} e6 {[%emt 0:03:02]} 6. f4 {[%emt 0:00:19]} g6 {[%emt 0:04:49]} 7. Nf3 {[%emt 0:00:40]} Bg7 {[%emt 0:02:42]} 8. O-O {[%emt 0:00:13]} O-O {[%emt 0:01:05]} 9. h3 {[%emt 0:00:56]} Re8 {[%emt 0:03:29]} 10. Be3 {[%emt 0:01:47]} e5 {[%emt 0:02:32]} 11. fxe5 {[%emt 0:16:52]} Nxe5 {[%emt 0:00:36]} 12. Nxe5 {[%emt 0:00:16]} dxe5 {[%emt 0:01:23]} 13. Bxc5 {[%emt 0:07:11]} Nh5 {[%emt 0:02:30]} 14. Qf3 {[%emt 0:00:38]} Qf6 {[%emt 0:04:26]} 15. Qxf6 {[%emt 0:06:21]} Bxf6 {[%emt 0:01:08]} 16. Nd5 {[%emt 0:03:04]} Bd8 {[%emt 0:00:57]} 17. Kh2 {[%emt 0:01:04]} Be6 {[%emt 0:00:39]} 18. c3 {[%emt 0:01:44]} b6 {[%emt 0:10:24]} 19. Be3 Rc8 20. g4 {[%emt 0:03:10]} Bxd5 {[%emt 0:03:42]} 21. exd5 {[%emt 0:00:22]} Nf4 {[%emt 0:02:29]} 22. Bxf4 {[%emt 0:01:06]} exf4 {[%emt 0:00:17]} 23. Be4 {[%emt 0:05:51]} g5 {[%emt 0:03:53]} 24. Kg2 {[%emt 0:00:45]} Bc7 {[%emt 0:03:07]} 25. Kf3 {[%emt 0:00:19]} Re7 {[%emt 0:00:54]} 26. Rh1 {[%emt 0:01:27]} Rce8 {[%emt 0:03:37]} 27. h4 {[%emt 0:01:07]} f6 {[%emt 0:01:29]} 28. hxg5 {[%emt 0:00:09]} fxg5 {[%emt 0:00:42]} 29. Rh6 {[%emt 0:00:28]} Rd7 {[%emt 0:04:54]} 30. Rah1 {[%emt 0:00:32]} Ree7 {[%emt 0:01:44]} 31. R1h5 {[%emt 0:02:41]} Rg7 {[%emt 0:01:19]} 32. Re6 {[%emt 0:00:47]} Rde7 {[%emt 0:03:04]} 33. Rxe7 {[%emt 0:00:32]} Rxe7 {[%emt 0:00:13]} 34. Rxg5+ {[%emt 0:00:05]} Rg7 {[%emt 0:01:19]} 35. Rh5 {[%emt 0:00:17]} Bb8 {[%emt 0:00:59]} 36. Rh6 {[%emt 0:00:10]} Rd7 {[%emt 0:00:53]} 37. Rc6 {[%emt 0:00:19]} Kg7 {[%emt 0:01:46]} 38. a4 {[%emt 0:00:24]} Rc7 {[%emt 0:04:48]} 39. Re6 {[%emt 0:00:00]} Rd7 {[%emt 0:00:00]} 40. d4 {[%emt 0:00:00]} Bc7 {[%emt 0:00:00]} 41. c4 {[%emt 0:01:42]} Bd6 {[%emt 0:04:18]} 42. Bf5 {[%emt 0:01:34]} Rd8 {[%emt 0:01:20]} 43. g5 {[%emt 0:01:13]} 1-0

[Event "Satka Autumn 2018"]
[Site "Satka"]
[Date "2018.09.13"]
[Round "3"]
[White "Svetlova, Ksenia"]
[Black "Kargina, Diana"]
[Result "1-0"]
[ECO "C42"]
[WhiteElo "1696"]
[BlackElo "1093"]
[Annotator "NA RC"]
[PlyCount "55"]
[EventDate "2018.09.11"]
[EventType "swiss"]
[EventCountry "RUS"]
[SourceTitle "playchess.com"]
[Source "ChessBase"]
[SourceQuality "1"]
[TimeControl "40/5400+30:1800+30"]

1. e4 {[%emt 0:00:00]} e5 {[%emt 0:00:00]} 2. Nf3 {[%emt 0:00:00]} Nf6 {[%emt 0:00:00]} 3. Nxe5 {[%emt 0:00:00]} d6 {[%emt 0:00:00]} 4. Nf3 {[%emt 0:00:00]} Nxe4 {[%emt 0:00:02]} 5. Nc3 {[%emt 0:00:00]} Nf6 {[%emt 0:00:12]} 6. d4 {[%emt 0:01:28]} Bg4 {[%emt 0:00:11]} 7. h3 {[%emt 0:03:09]} Bh5 {[%emt 0:00:10]} 8. Be3 {[%emt 0:02:52]} Nc6 {[%emt 0:00:21]} 9. Be2 {[%emt 0:07:31]} Be7 {[%emt 0:02:07]} 10. Qd2 {[%emt 0:04:08]} Bg6 {[%emt 0:00:17]} 11. a3 {[%emt 0:07:53]} Qd7 {[%emt 0:00:43]} 12. d5 {[%emt 0:02:32]} Nb8 {[%emt 0:02:17]} 13. O-O {[%emt 0:05:13]} c6 {[%emt 0:00:43]} 14. Bd3 {[%emt 0:11:37]} cxd5 {[%emt 0:02:18]} 15. Bxg6 {[%emt 0:00:43]} hxg6 {[%emt 0:00:25]} 16. Nxd5 {[%emt 0:00:21]} Nc6 {[%emt 0:00:57]} 17. Rfe1 {[%emt 0:01:56]} Nxd5 {[%emt 0:09:26]} 18. Qxd5 {[%emt 0:00:34]} Rh5 {[%emt 0:00:54]} 19. Bg5 {[%emt 0:16:04]} Rc8 {[%emt 0:02:35]} 20. Rad1 {[%emt 0:05:33]} Kf8 {[%emt 0:01:59]} 21. Bxe7+ {[%emt 0:00:52]} Nxe7 {[%emt 0:00:52]} 22. Qxd6 {[%emt 0:00:04]} Qxd6 {[%emt 0:02:39]} 23. Rxd6 {[%emt 0:00:04]} f6 {[%emt 0:00:23]} 24. Rd7 {[%emt 0:01:09]} Ng8 {[%emt 0:00:38]} 25. Rxb7 {[%emt 0:00:24]} Rxc2 {[%emt 0:01:25]} 26. Nd4 {[%emt 0:00:05]} Rc4 {[%emt 0:02:32]} 27. Ne6+ {[%emt 0:00:05]} Ke8 {[%emt 0:00:48]} 28. Nxg7+ {[%emt 0:00:04]} 1-0

[Event "Satka Autumn 2018"]
[Site "Satka"]
[Date "2018.09.13"]
[Round "3"]
[White "Kilina, Elizaveta"]
[Black "Mironenko, Galina"]
[Result "0-1"]
[ECO "B06"]
[WhiteElo "1226"]
[BlackElo "2021"]
[Annotator "NA"]
[PlyCount "56"]
[EventDate "2018.09.11"]
[EventType "swiss"]
[EventCountry "RUS"]
[SourceTitle "playchess.com"]
[Source "ChessBase"]
[SourceQuality "1"]
[TimeControl "40/5400+30:1800+30"]

{[%evp 8,46,48,46,80,32767,32767,32767,32767,32767,88,39,121,21,43,-26,-11,-28,-34,-35,-50,-105,-82,-124,-111,-115,-114,-118,-128,-133,-101,32767,32767,32767,32767,32767,32767,32767,32767,32767,-291]} 1. e4 {[%emt 0:00:00]} g6 {[%emt 0:00:00]} 2. d4 {[%emt 0:00:00]} Bg7 {[%emt 0:00:00]} 3. Nc3 {[%emt 0:00:18]} d6 {[%emt 0:00:00]} 4. Nf3 {[%emt 0:01:21]} a6 {[%emt 0:00:20]} 5. Bd3 {[%emt 0:01:11]} b5 {[%emt 0:00:35] LiveBook: 20 Games} 6. Be3 {[%emt 0:11:17]} Nd7 {[%emt 0:01:21] B06: Moderne Verteidigung} 7. O-O {[%emt 0:08:49]} (7. e5 e6 8. Ne4 d5 9. Ng3 c5 10. c3 Ne7 11. Qe2 Nc6 12. Qd2 c4 13. Bc2 a5 14. Bh6 {0-1 (34) So,W (2815)-Carlsen,M (2832) chess.com INT 2017}) 7... Bb7 {[%emt 0:00:27]} 8. b4 {[%emt 0:14:02]} e6 {[%emt 0:06:22]} (8... c5 $11) 9. Qd2 {[%emt 0:02:32]} Ne7 $146 {[%emt 0:01:31]} ({Black should try} 9... Ngf6 $14) ({Vorgänger:} 9... c5 10. bxc5 dxc5 11. dxc5 b4 12. Ne2 Bxa1 13. Rxa1 a5 14. Bb5 Ba6 15. Ba4 Qc7 16. Bf4 Qa7 17. Ne5 Ngf6 18. Qd6 Bxe2 19. Nxd7 {1-0 (19) Mantl,K (1895)-Schramm,L (1788) ICCF email 2012}) 10. Rac1 {[%emt 0:20:45]} (10. a4 $16) 10... O-O {[%emt 0:03:28]} 11. Bh6 {[%emt 0:01:23]} ({Better is} 11. a4 $14) 11... c5 {[%emt 0:01:31]} 12. Bxg7 {[%emt 0:07:06]} Kxg7 {[%emt 0:00:09]} 13. dxc5 {[%emt 0:00:30]} dxc5 {[%emt 0:00:16]} 14. Qe3 {[%emt 0:03:33]} Qc7 {[%emt 0:07:43]} 15. Nd2 {[%emt 0:12:17]} cxb4 {[%emt 0:06:05]} 16. Qd4+ {[%emt 0:01:00]} Kg8 {[%emt 0:01:13]} 17. Qxb4 {[%emt 0:00:21]} Nc6 {[%emt 0:00:48]} 18. Qb2 {[%emt 0:01:41]} Rad8 {[%emt 0:03:46]} 19. f4 {[%emt 0:02:16]} Nc5 {[%emt 0:01:16]} 20. Qb1 {[%emt 0:02:24]} Qa5 {[%emt 0:02:52]} 21. Qb2 {[%emt 0:01:53]} Rxd3 {[%emt 0:03:02]} 22. cxd3 {[%emt 0:01:08]} Nxd3 {[%emt 0:00:09]} 23. Qb1 {[%emt 0:01:17]} Qb6+ $19 {[%emt 0:02:11]} 24. Kh1 {[%emt 0:00:51]} Nxc1 {[%emt 0:00:37]} 25. Rxc1 {[%emt 0:02:33]} Qe3 {[%emt 0:01:14]} 26. Qb2 {[%emt 0:01:52]} Qxf4 {[%emt 0:00:59]} 27. Rf1 {[%emt 0:00:38]} Qe5 {[%emt 0:01:06]} 28. Nf3 {[%emt 0:00:18]} Qg7 {[%emt 0:00:26]} 0-1

[Event "Satka Autumn 2018"]
[Site "Satka"]
[Date "2018.09.13"]
[Round "3"]
[White "Lapteva, Yulia"]
[Black "Mirgalina, Anna"]
[Result "0-1"]
[ECO "E18"]
[WhiteElo "1074"]
[BlackElo "1339"]
[Annotator "NA"]
[PlyCount "96"]
[EventDate "2018.09.11"]
[EventType "swiss"]
[EventCountry "RUS"]
[SourceTitle "playchess.com"]
[Source "ChessBase"]
[SourceQuality "1"]
[TimeControl "40/5400+30:1800+30"]

1. d4 {[%emt 0:00:00]} Nf6 {[%emt 0:00:00]} 2. Nf3 {[%emt 0:00:00]} e6 {[%emt 0:00:00]} 3. g3 {[%emt 0:00:00]} b6 {[%emt 0:00:00]} 4. Bg2 {[%emt 0:00:04]} Bb7 {[%emt 0:00:03]} 5. O-O {[%emt 0:00:33]} Be7 {[%emt 0:00:21]} 6. c4 {[%emt 0:00:20]} O-O {[%emt 0:00:19]} 7. Nc3 {[%emt 0:00:10]} d5 {[%emt 0:00:46]} 8. cxd5 {[%emt 0:03:14]} Nxd5 {[%emt 0:01:10]} 9. Nxd5 {[%emt 0:00:41]} Bxd5 {[%emt 0:00:17]} 10. Re1 {[%emt 0:00:44]} Bb7 {[%emt 0:01:28]} 11. Bf4 {[%emt 0:05:51]} h6 {[%emt 0:06:06]} 12. Rc1 {[%emt 0:01:48]} Bd6 {[%emt 0:06:22]} 13. Ne5 {[%emt 0:03:14]} Bxg2 {[%emt 0:00:40]} 14. Kxg2 {[%emt 0:00:13]} Qe7 {[%emt 0:03:34]} 15. e4 {[%emt 0:07:17]} c5 {[%emt 0:04:26]} 16. d5 {[%emt 0:02:14]} Qc7 {[%emt 0:04:43]} 17. Qh5 {[%emt 0:15:03]} Nd7 {[%emt 0:05:25]} 18. Nxd7 {[%emt 0:06:57]} Qxd7 {[%emt 0:00:46]} 19. e5 {[%emt 0:04:40]} Be7 {[%emt 0:00:56]} 20. d6 {[%emt 0:00:22]} Bd8 {[%emt 0:00:26]} 21. Qg4 {[%emt 0:01:41]} f5 {[%emt 0:06:58]} 22. exf6 {[%emt 0:03:38]} Rxf6 {[%emt 0:00:52]} 23. Be5 {[%emt 0:06:21]} Rf8 {[%emt 0:00:41]} 24. Bf4 {[%emt 0:00:33]} Bf6 {[%emt 0:02:29]} 25. Rc2 {[%emt 0:05:47]} Rae8 {[%emt 0:00:59]} 26. Rd2 {[%emt 0:02:33]} Bd4 {[%emt 0:02:36]} 27. Be5 {[%emt 0:02:49]} Bxe5 {[%emt 0:00:36]} 28. Rxe5 {[%emt 0:00:03]} Rf5 {[%emt 0:02:09]} 29. Qe2 {[%emt 0:05:10]} Qf7 {[%emt 0:04:03]} 30. d7 {[%emt 0:03:18]} Rd8 {[%emt 0:00:54]} 31. Rxe6 {[%emt 0:00:47]} Rxd7 {[%emt 0:00:33]} 32. Rxd7 {[%emt 0:00:17]} Qxd7 {[%emt 0:00:13]} 33. a3 {[%emt 0:02:06]} Qb7+ {[%emt 0:04:28]} 34. Kg1 {[%emt 0:00:42]} Qf3 {[%emt 0:01:18]} 35. Qxf3 {[%emt 0:01:07]} Rxf3 {[%emt 0:00:05]} 36. Re3 {[%emt 0:00:26]} Rxe3 {[%emt 0:00:44]} 37. fxe3 {[%emt 0:00:04]} Kf7 {[%emt 0:00:06]} 38. Kf2 {[%emt 0:00:06]} Ke6 {[%emt 0:02:54]} 39. e4 {[%emt 0:00:32]} Ke5 {[%emt 0:00:11]} 40. Ke3 {[%emt 0:00:00]} h5 {[%emt 0:00:00]} 41. h4 {[%emt 0:01:01]} c4 {[%emt 0:01:34]} 42. Kf3 {[%emt 0:03:00]} b5 {[%emt 0:00:19]} 43. Ke3 {[%emt 0:00:59]} a6 {[%emt 0:00:37]} 44. Kf3 {[%emt 0:00:24]} a5 {[%emt 0:00:21]} 45. Ke3 {[%emt 0:00:14]} a4 {[%emt 0:01:01]} 46. Kf3 {[%emt 0:01:02]} b4 {[%emt 0:00:35]} 47. Ke3 {[%emt 0:02:14]} c3 {[%emt 0:00:29]} 48. bxc3 {[%emt 0:01:48]} bxa3 {[%emt 0:00:17]} 0-1

[Event "Satka Autumn 2018"]
[Site "Satka"]
[Date "2018.09.15"]
[Round "5"]
[White "Voit, Daria"]
[Black "Mironenko, Galina"]
[Result "1/2-1/2"]
[ECO "A05"]
[WhiteElo "2369"]
[BlackElo "2021"]
[Annotator "NA"]
[PlyCount "80"]
[EventDate "2018.09.11"]
[EventType "swiss"]
[EventCountry "RUS"]
[SourceTitle "playchess.com"]
[Source "ChessBase"]
[SourceQuality "1"]
[TimeControl "40/5400+30:1800+30"]

1. Nf3 {[%emt 0:00:00]} Nf6 {[%emt 0:00:00]} 2. c4 {[%emt 0:00:00]} e6 {[%emt 0:00:00]} 3. g3 {[%emt 0:00:00]} Be7 {[%emt 0:00:02]} 4. Bg2 {[%emt 0:00:00]} O-O {[%emt 0:00:08]} 5. d4 {[%emt 0:00:17]} d5 {[%emt 0:00:09]} 6. O-O {[%emt 0:00:04]} b6 {[%emt 0:00:08]} 7. Nc3 {[%emt 0:00:15]} Bb7 {[%emt 0:00:15]} 8. Ne5 {[%emt 0:00:15]} Na6 {[%emt 0:01:40]} 9. b3 {[%emt 0:01:43]} c5 {[%emt 0:04:47]} 10. Bb2 {[%emt 0:00:17]} Ne4 {[%emt 0:08:06] E18: Damenindisch (Hauptfortsetzung)} 11. cxd5 {[%emt 0:33:06]} exd5 {[%emt 0:01:16]} 12. Nb5 $146 {[%emt 0:01:41]} ({Vorgänger:} 12. Nxe4 dxe4 13. Qb1 cxd4 14. Bxe4 Bxe4 15. Qxe4 Bf6 16. Ng4 Re8 17. Qf3 Nc5 18. Rfd1 h5 19. Nxf6+ Qxf6 20. Qxf6 gxf6 {1-0 (30) Saric,A (2538)-Veres,A (2255) Split 2017}) 12... Qc8 {[%emt 0:07:18]} 13. Rc1 {[%emt 0:01:34]} Qe6 {[%emt 0:01:26]} 14. dxc5 {[%emt 0:02:50]} bxc5 {[%emt 0:01:32]} 15. Nd3 {[%emt 0:01:49]} Rfd8 {[%emt 0:07:20]} 16. Nc3 {[%emt 0:02:40]} Bg5 {[%emt 0:06:12]} 17. Ra1 {[%emt 0:10:03]} c4 {[%emt 0:04:03]} 18. Ne1 {[%emt 0:05:55]} Bd2 {[%emt 0:06:16]} 19. Nxe4 {[%emt 0:16:26]} dxe4 {[%emt 0:00:30]} 20. bxc4 {[%emt 0:00:09]} Qxc4 {[%emt 0:03:37] [#]} 21. Qb3 {[%emt 0:08:34]} (21. Nd3 $1 $11 {[%mdl 512]} exd3 22. exd3 Rxd3 23. Bxb7) 21... Qxb3 {[%emt 0:03:16]} 22. axb3 {[%emt 0:00:02]} Nb4 {[%emt 0:00:54]} 23. f3 {[%emt 0:00:45]} (23. Rd1 $142) 23... Nd5 {[%emt 0:08:08]} 24. Nc2 {[%emt 0:08:04]} Rac8 {[%emt 0:03:00]} 25. Nd4 {[%emt 0:00:35]} Ne3 {[%emt 0:00:46]} 26. Bh3 {[%emt 0:01:55]} (26. Rfb1 $17) 26... Rc7 $19 {[%emt 0:04:44]} ({Don't take} 26... Nxf1 27. Bxc8 Bxc8 28. Kxf1 $17) 27. Rfb1 {[%emt 0:01:20]} Nc2 {[%emt 0:01:59]} 28. Nxc2 {[%emt 0:01:35]} Rxc2 {[%emt 0:00:07]} 29. fxe4 {[%emt 0:01:55]} Bxe4 {[%emt 0:01:51]} 30. Kf1 {[%emt 0:00:37]} Rc7 {[%emt 0:01:31]} 31. Rd1 {[%emt 0:00:07]} Bc2 {[%emt 0:00:25]} 32. Rac1 {[%emt 0:00:09]} Bxd1 {[%emt 0:05:42]} 33. Rxc7 {[%emt 0:00:06]} Bxb3 {[%emt 0:00:42]} 34. Rxa7 {[%emt 0:00:20]} Be3 {[%emt 0:00:31]} 35. Rd7 {[%emt 0:00:29]} Rxd7 {[%emt 0:00:41]} 36. Bxd7 {[%emt 0:00:03]} Bd5 {[%emt 0:00:16]} 37. Bg4 {[%emt 0:00:06]} f6 {[%emt 0:00:19]} 38. Bf3 {[%emt 0:00:02]} Bxf3 {[%emt 0:00:29]} 39. exf3 {[%emt 0:00:02]} Kf7 {[%emt 0:00:09]} 40. Ke2 {[%emt 0:00:00]} Bg1 {[%emt 0:00:00]} 1/2-1/2